bitfinex/quotes_ETHUSD_20240618
["timestamp","ask_amount","ask_price","bid_price","bid_amount"]
[1718744674872,2.88698,3463.9,3463.4,2.88733]
[1718744675037,2.88708,3463.7,3463.0,2.88765]
[1718744675232,2.88718,3463.6,3463.0,2.88765]
[1718744676175,2.8874,3463.4,3462.8,2.88782]
[1718744676319,2.8874,3463.4,3462.7,2.88791]
[1718744676320,2.88749,3463.3,3462.7,2.88791]
[1718744676526,2.88751,3463.2,3462.7,2.8879]
[1718744676954,2.88751,3463.2,3462.6,2.88798]
[1718744677167,2.8874,3463.4,3462.7,2.88791]
[1718744677324,3.464678,3463.5,3462.8,2.8878]
[1718744677526,2.88735,3463.4,3462.8,2.8878]
[1718744677766,2.88725,3463.5,3462.8,2.8878]
[1718744677971,3.464683,3463.5,3462.8,2.8878]
[1718744678323,2.88653,3464.4,3463.4,2.88726]
[1718744678659,0.2892,3464.7,3463.4,2.88726]
[1718744678660,2.88675,3464.1,3463.4,2.88726]
[1718744678869,2.88684,3464.0,3463.4,2.88726]
[1718744679368,2.88659,3464.3,3462.7,2.044]
[1718744679369,2.887,3463.9,3462.7,2.044]
[1718744679517,2.88709,3463.7,3463.1,2.88756]
[1718744679723,2.88725,3463.5,3462.8,3.381026]
[1718744679954,2.88725,3463.5,3462.9,2.88768]
[1718744680157,0.2892,3464.1,3462.7,2.044]
[1718744680334,0.2892,3464.1,3462.7,2.88791]
[1718744680335,2.88748,3463.3,3462.7,2.88791]
[1718744680852,2.88768,3463.0,3462.4,2.88816]
[1718744681386,5.77509,3463.2,3462.4,2.88816]
[1718744681527,3.464902,3463.3,3462.2,2.88829]
[1718744681726,3.464902,3463.3,3462.7,2.88787]
[1718744681955,2.88742,3463.3,3462.7,2.88787]
[1718744682469,2.88752,3463.2,3462.7,2.88787]
[1718744682762,4.1361,3463.7,3462.0,0.928438]
[1718744682963,2.88683,3464.0,3462.6,4.93199]
[1718744683166,2.88683,3464.0,3463.4,2.88732]
[1718744683528,2.88683,3464.0,3462.8,2.88779]
[1718744683729,2.88683,3464.0,3463.1,2.88758]
[1718744683964,4.106,3464.2,3463.2,2.88743]
[1718744683965,2.887,3463.8,3463.2,2.88743]
[1718744684131,3.1757,3463.8,3463.2,2.88743]
[1718744684330,2.887,3463.8,3463.2,2.88743]
[1718744684639,2.88708,3463.7,3463.2,2.88743]
[1718744685379,2.88692,3463.9,3462.7,0.493199]
[1718744685586,2.88692,3463.9,3463.4,2.88733]
[1718744685747,2.88701,3463.8,3463.2,2.88742]
[1718744685946,2.88717,3463.6,3463.1,2.88757]
[1718744686274,2.88709,3463.7,3463.2,2.88749]
[1718744686827,0.987963,3463.9,3463.3,2.88739]
[1718744687032,2.88685,3464.0,3463.5,2.88725]
[1718744687347,2.88622,3464.8,3463.3,2.88739]
[1718744687348,2.88659,3464.3,3463.3,2.8874]
[1718744687545,3.475122,3464.5,3463.4,2.8873]
[1718744687868,2.88642,3464.5,3463.9,2.88688]
[1718744688086,2.88656,3464.4,3463.9,2.88691]
[1718744688432,2.88656,3464.4,3463.8,2.88698]
[1718744688756,2.88656,3464.4,3463.9,2.88689]
[1718744689132,2.8866,3464.3,3463.8,2.887]
[1718744689930,2.88674,3464.2,3463.5,2.88718]
[1718744690282,2.88684,3464.0,3463.5,2.88718]
[1718744690680,2.88693,3463.9,3463.4,2.88732]
[1718744690880,2.88693,3463.9,3463.3,2.8874]
[1718744691873,2.887,3463.8,3463.3,2.8874]
[1718744692518,2.88683,3464.0,3463.4,2.88726]
[1718744693229,2.88677,3464.1,3463.5,2.88725]
[1718744693533,2.88659,3464.3,3463.7,2.88702]
[1718744693709,2.88648,3464.5,3463.9,2.88683]
[1718744693710,2.88643,3464.5,3463.9,2.88683]
[1718744693911,4.3075,3465.3,3464.0,0.03689422]
[1718744694225,2.886,3465.0,3464.5,2.88639]
[1718744694576,2.88608,3464.9,3464.4,2.88648]
[1718744695031,5.77224,3464.9,3464.3,2.88656]
[1718744695219,5.77224,3464.9,3464.2,2.88666]
[1718744695220,2.88626,3464.7,3464.2,2.88665]
[1718744695783,2.88658,3464.4,3463.8,2.88694]
[1718744696206,2.88658,3464.4,3463.9,2.88691]
[1718744697188,2.88664,3464.3,3463.7,2.88707]
[1718744697396,2.88698,3463.9,3463.3,2.88735]
[1718744697620,2.88709,3463.7,3463.1,2.88758]
[1718744697804,0.2892,3464.3,3462.9,2.88774]
[1718744698015,0.2892,3464.1,3462.9,2.88774]
[1718744698326,2.88723,3463.6,3463.0,2.88765]
[1718744699057,2.88726,3463.5,3462.7,2.8879]
[1718744699190,2.88742,3463.3,3462.8,2.88783]
[1718744699532,2.88725,3463.5,3462.5,2.88801]
[1718744699823,2.88725,3463.5,3462.8,2.88782]
[1718744699990,0.288709,3463.6,3462.9,2.88774]
[1718744699991,2.88734,3463.4,3462.9,2.88774]
[1718744700410,2.88725,3463.5,3462.8,2.88781]
[1718744700658,2.88701,3463.8,3462.6,0.3476811]
[1718744700828,2.88701,3463.8,3463.2,2.88743]
[1718744701044,2.88684,3464.0,3463.3,2.8874]
[1718744701235,2.88694,3463.9,3463.3,2.8874]
[1718744701433,0.750358,3464.2,3463.6,2.88714]
[1718744701768,0.750358,3464.2,3462.7,2.88785]
[1718744701769,2.88675,3464.1,3463.5,2.88723]
[1718744702070,2.88669,3464.2,3463.5,2.88723]
[1718744702366,2.8866,3464.3,3463.7,2.88703]
[1718744702525,2.88643,3464.5,3463.8,2.88699]
[1718744702725,2.88618,3464.8,3464.2,2.8866]
[1718744702962,2.88633,3464.7,3464.1,2.88675]
[1718744703171,3.587708,3464.7,3464.1,2.88675]
[1718744703472,3.587708,3464.7,3464.2,2.88665]
[1718744703767,0.43075,3465.2,3463.5,4.62318]
[1718744703983,2.88598,3465.1,3464.4,2.88648]
[1718744704275,2.88606,3465.0,3464.4,2.88648]
[1718744704563,2.88606,3465.0,3464.5,2.88639]
[1718744704766,2.88611,3464.9,3464.2,2.88658]
[1718744704966,2.88623,3464.8,3464.3,2.88658]
[1718744705667,2.8861,3464.9,3464.4,2.8865]
[1718744706448,0.86712372,3465.1,3463.6,4.7533]
[1718744706449,2.88641,3464.6,3463.6,7.09045]
[1718744706772,2.88659,3464.3,3463.6,2.88715]
[1718744707070,2.88675,3464.1,3463.6,2.88715]
[1718744707393,0.49978,3464.4,3462.6,4.2047]
[1718744707680,2.88735,3463.4,3462.8,2.88783]
[1718744708257,2.88708,3463.7,3463.0,2.88765]
[1718744708456,2.88708,3463.7,3463.0,2.88766]
[1718744708661,2.88719,3463.6,3463.0,2.88766]
[1718744709131,2.88727,3463.5,3462.9,2.88773]
[1718744709337,0.317639,3463.6,3462.3,2.88817]
[1718744709644,0.317639,3463.6,3461.2,11.10172813]
[1718744709645,2.88785,3462.8,3462.2,2.88832]
[1718744709842,2.88785,3462.8,3462.1,2.8884]
[1718744709843,2.88792,3462.7,3462.1,2.8884]
[1718744710048,2.88775,3462.9,3462.3,2.88823]
[1718744710266,0.49984689,3463.5,3462.4,2.88815]
[1718744710267,3.66682969,3463.4,3462.4,2.88815]
[1718744710637,2.88776,3462.9,3462.4,2.8881]
[1718744710970,2.88776,3462.9,3462.2,2.88832]
[1718744711170,2.88759,3463.1,3462.2,2.88832]
[1718744711335,2.88749,3463.3,3462.5,2.88807]
[1718744711535,2.8876,3463.1,3462.2,2.88832]
[1718744711745,2.88776,3462.9,3462.4,2.88808]
[1718744712169,2.88776,3462.9,3462.2,2.88832]
[1718744712170,2.88776,3462.9,3462.3,2.88824]
[1718744712390,2.88784,3462.8,3462.1,2.88841]
[1718744712752,0.577551,3462.8,3461.9,2.88853]
[1718744713001,2.88808,3462.5,3461.9,2.88853]
[1718744713356,2.88801,3462.6,3462.1,2.88841]
[1718744713599,2.88793,3462.7,3462.1,2.88841]
[1718744713897,2.88811,3462.5,3461.6,2.88876]
[1718744714266,2.88791,3462.8,3461.9,2.88858]
[1718744714485,2.88799,3462.7,3461.7,2.88871]
[1718744714664,2.88809,3462.5,3461.9,2.88858]
[1718744714860,2.88809,3462.5,3462.0,2.8885]
[1718744715055,2.88799,3462.7,3462.1,2.88839]
[1718744715260,2.88785,3462.8,3462.2,2.88831]
[1718744715791,2.88785,3462.8,3462.3,2.88824]
[1718744715992,0.63044587,3462.9,3462.3,2.88824]
[1718744715993,3.51819587,3462.9,3462.3,2.88824]
[1718744716179,2.88785,3462.8,3462.2,2.88832]
[1718744716795,0.63044587,3462.9,3462.1,2.88841]
[1718744716796,3.51820587,3462.9,3462.3,2.88823]
[1718744717301,2.88788,3462.8,3462.2,2.88833]
[1718744717799,3.52844859,3462.8,3462.1,2.88841]
[1718744717977,2.888,3462.6,3462.1,2.88841]
[1718744718597,2.88793,3462.7,3462.1,2.88841]
[1718744719492,2.88761,3463.1,3461.5,1.281786]
[1718744719493,3.0,3463.2,3462.5,2.88808]
[1718744719660,0.617652,3463.2,3462.5,2.88808]
[1718744720095,2.88765,3463.1,3462.6,2.88799]
[1718744720299,2.88708,3463.8,3462.4,2.88811]
[1718744720300,2.88711,3463.7,3463.0,2.88763]
[1718744720472,2.88718,3463.6,3463.0,2.88763]
[1718744720881,2.887,3463.8,3463.0,2.88763]
[1718744721078,2.88718,3463.6,3462.9,2.88774]
[1718744721587,5.8871,3463.7,3463.0,2.88759]
[1718744721782,3.4758,3463.7,3463.1,2.88752]
[1718744722088,2.88728,3463.5,3462.9,2.88773]
[1718744722598,2.88709,3463.7,3463.0,2.88766]
[1718744722906,2.88717,3463.6,3463.1,2.88756]
[1718744723472,2.88717,3463.6,3463.0,2.88765]
[1718744724006,3.782206,3463.6,3463.0,2.88765]
[1718744724221,2.88726,3463.5,3463.0,2.88765]
[1718744724370,2.88726,3463.5,3462.9,2.88774]
[1718744724565,2.88734,3463.4,3462.9,2.88774]
[1718744724796,2.88734,3463.4,3462.5,2.88805]
[1718744724797,2.88734,3463.4,3462.8,2.88782]
[1718744726003,2.88726,3463.5,3462.9,2.88772]
[1718744726380,2.88692,3463.9,3462.9,0.577554]
[1718744726580,2.88627,3464.7,3463.7,2.88705]
[1718744726581,4.3463,3464.6,3463.7,2.88705]
[1718744726793,2.8865,3464.4,3463.5,2.88724]
[1718744727099,2.88674,3464.2,3463.5,2.88724]
[1718744727669,2.88674,3464.2,3463.5,2.88718]
[1718744727670,2.88683,3464.0,3463.5,2.88718]
[1718744727868,2.88713,3463.7,3463.1,2.88751]
[1718744728178,2.88713,3463.7,3463.2,2.8875]
[1718744728378,2.88691,3463.9,3463.3,2.88741]
[1718744728708,3.493315,3463.8,3463.3,2.88741]
[1718744728902,2.88716,3463.6,3462.6,2.88797]
[1718744729110,2.88717,3463.6,3462.8,2.88778]
[1718744729416,2.88732,3463.5,3463.0,2.88764]
[1718744730212,2.88732,3463.5,3461.7,2.88868]
[1718744730213,2.88801,3462.6,3461.7,2.88868]
[1718744730507,2.88793,3462.7,3462.1,2.88841]
[1718744730815,2.88811,3462.5,3461.9,2.88856]
[1718744731027,2.88811,3462.5,3462.0,2.8885]
[1718744731671,2.88811,3462.5,3461.8,2.88867]
[1718744732133,2.88811,3462.5,3461.9,2.88851]
[1718744733709,2.88811,3462.5,3461.4,5.8062]
[1718744733921,0.2892,3463.1,3461.6,2.88881]
[1718744733922,2.88834,3462.2,3461.6,2.88881]
[1718744734121,2.88833,3462.2,3461.7,2.88872]
[1718744734269,2.88833,3462.2,3461.6,2.88882]
[1718744735026,2.88817,3462.4,3461.7,0.984795]
[1718744735178,2.88817,3462.4,3461.7,1.04256554]
[1718744735376,0.2892,3463.0,3461.7,1.04256554]
[1718744735377,2.88788,3462.8,3461.7,1.04256554]
[1718744735577,2.88792,3462.7,3462.1,2.88834]
[1718744736013,2.88803,3462.6,3461.9,2.88858]
[1718744736189,2.88792,3462.7,3462.1,2.88841]
[1718744736383,2.8881,3462.5,3461.9,2.88858]
[1718744736576,2.88818,3462.4,3462.0,0.05776307]
[1718744736797,2.888,3462.6,3462.1,2.8884]
[1718744737021,3.20561,3462.8,3462.0,0.05776307]
[1718744737022,3.20561,3462.8,3462.0,2.88848]
[1718744737178,2.88791,3462.8,3462.1,0.05776219]
[1718744737511,2.88792,3462.7,3462.2,2.88833]
[1718744737871,2.88792,3462.7,3461.9,2.88857]
[1718744738114,2.8878,3462.9,3462.1,2.88837]
[1718744738115,2.88801,3462.6,3462.1,2.88837]
[1718744738334,2.8878,3462.9,3462.0,0.05776305]
[1718744738335,2.88808,3462.5,3462.0,2.88849]
[1718744738651,2.88801,3462.6,3462.0,2.88849]
[1718744738949,2.88793,3462.7,3462.1,2.88839]
[1718744739111,2.888,3462.6,3462.1,2.88839]
[1718744740172,2.88843,3462.1,3461.5,2.88885]
[1718744740440,2.88843,3462.1,3461.3,2.88908]
[1718744740826,2.88859,3461.9,3461.3,2.88908]
[1718744742633,2.88843,3462.1,3461.5,2.8889]
[1718744742852,2.88856,3462.0,3461.4,2.88899]
[1718744743839,2.88856,3462.0,3461.5,2.8889]
[1718744745027,2.88836,3462.2,3461.5,2.88884]
[1718744745233,2.8885,3462.0,3461.5,2.88884]
[1718744745540,2.88843,3462.1,3461.6,2.88882]
[1718744745963,2.88835,3462.2,3461.6,2.88882]
[1718744746466,2.88806,3462.6,3462.0,2.88847]
[1718744746767,2.88806,3462.6,3461.9,2.88856]
[1718744746768,2.88801,3462.6,3461.9,2.88856]
[1718744747322,4.29956018,3462.6,3461.9,2.88856]
[1718744747979,2.88817,3462.4,3461.9,2.88856]
[1718744748124,2.88834,3462.2,3461.6,2.88875]
[1718744748450,3.15018657,3463.6,3461.7,5.9548]
[1718744748763,0.2892,3463.7,3462.8,2.88777]
[1718744748764,2.09985268,3463.5,3462.8,2.88777]
[1718744748978,2.88709,3463.7,3462.9,2.88773]
[1718744749117,2.88709,3463.7,3462.8,2.88782]
[1718744749317,2.8874,3463.4,3462.8,2.88782]
[1718744749747,2.88725,3463.5,3462.9,2.88771]
[1718744750156,3.608759,3463.6,3462.9,2.88774]
[1718744750454,2.88718,3463.6,3463.1,2.88757]
[1718744751524,2.8871,3463.7,3463.1,2.88757]
[1718744752165,2.8871,3463.7,3461.7,2.03728689]
[1718744752166,5.09945873,3463.6,3461.7,2.03728689]
[1718744752323,5.09945873,3463.6,3462.0,2.88849]
[1718744752324,2.88805,3462.6,3462.0,2.88849]
[1718744752675,3.902699,3462.6,3462.0,2.88849]
[1718744752819,3.902699,3462.6,3461.7,3.0]
[1718744752820,2.88809,3462.5,3461.7,5.88874]
[1718744753025,2.88817,3462.4,3461.8,2.88865]
[1718744753857,2.88826,3462.3,3461.7,5.88874]
[1718744754162,2.88826,3462.3,3461.6,2.88881]
[1718744754163,2.88835,3462.2,3461.6,2.88881]
[1718744754361,2.88844,3462.1,3461.6,2.88881]
[1718744754563,2.88844,3462.1,3461.2,6.95752]
[1718744754564,0.57767,3462.1,3461.2,6.95752]
[1718744754763,2.88826,3462.3,3461.4,2.88899]
[1718744754764,2.88861,3461.9,3461.4,2.88899]
[1718744754925,2.88876,3461.7,3461.0,5.88931]
[1718744755123,2.88876,3461.7,3461.1,2.88923]
[1718744755468,2.88876,3461.7,3461.2,2.88916]
[1718744755999,2.88876,3461.7,3461.0,2.88931]
[1718744756289,2.88884,3461.6,3461.1,2.88923]
[1718744757769,2.88901,3461.4,3460.8,2.88948]
[1718744758765,2.88867,3461.8,3461.0,2.88925]
[1718744759073,2.88885,3461.6,3461.0,2.88925]
[1718744759592,2.88885,3461.6,3460.8,3.178408]
[1718744759593,2.88884,3461.6,3461.1,2.88924]
[1718744760495,2.88884,3461.6,3460.8,0.288958]
[1718744760714,2.889,3461.4,3460.7,2.88958]
[1718744760942,2.88891,3461.6,3461.1,2.88923]
[1718744761137,2.88871,3461.8,3461.1,2.88923]
[1718744761138,2.88876,3461.7,3461.1,2.88923]
[1718744761297,2.8889,3461.6,3461.0,2.88932]
[1718744761608,2.88899,3461.5,3460.9,2.88941]
[1718744762126,2.88918,3461.2,3460.6,2.88966]
[1718744762298,2.88923,3461.2,3460.6,2.88966]
[1718744762829,5.77835,3461.2,3460.3,2.88991]
[1718744763002,2.88956,3460.8,3460.0,15.0]
[1718744763202,2.88951,3460.8,3460.3,2.8899]
[1718744764320,4.5403,3460.6,3460.0,15.0]
[1718744764670,8.95944,3460.1,3460.0,15.0]
[1718744765198,5.78016,3460.1,3460.0,15.0]
[1718744765796,8.67024,3460.1,3460.0,15.0]
[1718744766952,6.06936,3460.1,3460.0,15.0]
[1718744767118,8.95944,3460.1,3460.0,15.0]
[1718744767311,6.965304,3460.1,3460.0,15.0]
[1718744767917,9.855384,3460.1,3460.0,15.0]
[1718744768337,16.864564,3460.1,3460.0,15.0]
[1718744768544,16.974484,3460.1,3460.0,15.0]
[1718744769920,16.685284,3460.1,3460.0,15.0]
[1718744770615,19.575364,3460.1,3460.0,15.0]
[1718744770977,19.864564,3460.1,3460.0,15.0]
[1718744771666,22.754644,3460.1,3460.0,10.5525]
[1718744771870,22.754644,3460.1,3460.0,6.105]
[1718744771871,23.304644,3460.1,3460.0,6.105]
[1718744772374,23.304644,3460.1,3460.0,1.8708]
[1718744772375,25.817738,3460.1,3460.0,1.8708]
[1718744772733,25.817738,3460.1,3460.0,1.33438152]
[1718744773135,27.92008033,3460.1,3460.0,1.33438152]
[1718744773456,24.61372,3460.1,3460.0,1.33438152]
[1718744773967,24.61372,3460.1,3460.0,1.16618152]
[1718744775151,24.61372,3460.1,3460.0,1.04618152]
[1718744775552,24.61372,3460.1,3460.0,0.95618152]
[1718744775775,19.810625,3460.1,3460.0,0.95618152]
[1718744776072,16.295464,3460.1,3460.0,0.95618152]
[1718744776845,9.676104,3460.1,3460.0,0.95618152]
[1718744777048,2.89008,3460.1,3460.0,0.95618152]
[1718744777248,8.67024,3460.1,3460.0,0.95618152]
[1718744777468,8.0668953,3460.1,3460.0,0.95618152]
[1718744777876,10.9569753,3460.1,3460.0,0.95618152]
[1718744778087,12.34187283,3460.1,3460.0,0.95618152]
[1718744778644,20.71327283,3460.1,3460.0,0.95618152]
[1718744778978,17.96395283,3460.1,3460.0,0.88739941]
[1718744779143,20.96395283,3460.1,3460.0,0.88739941]
[1718744779348,27.00572383,3460.1,3460.0,0.88739941]
[1718744779590,20.96395283,3460.1,3460.0,0.85049671]
[1718744779953,23.85395283,3460.1,3460.0,0.85049671]
[1718744780459,21.51395283,3460.1,3460.0,0.85049671]
[1718744781280,18.07387283,3460.1,3460.0,0.85049671]
[1718744781490,12.16259283,3460.1,3460.0,0.85049671]
[1718744781775,11.0668953,3460.1,3460.0,0.85049671]
[1718744782577,2.89087,3459.2,3457.9,4.0259]
[1718744782754,2.8913,3458.7,3458.0,2.89177]
[1718744782955,2.89135,3458.6,3458.0,2.89177]
[1718744783157,0.317954,3459.6,3457.9,4.0259]
[1718744783158,3.0,3459.4,3457.9,4.0259]
[1718744783366,2.89117,3458.8,3458.2,2.89165]
[1718744783575,2.89162,3458.3,3457.4,2.89232]
[1718744783858,2.89168,3458.2,3457.6,2.89215]
[1718744784392,2.89193,3457.9,3457.3,2.89242]
[1718744784556,2.89193,3457.9,3457.2,2.8925]
[1718744785061,2.89176,3458.1,3457.2,2.8925]
[1718744785271,2.89188,3458.0,3457.4,2.89227]
[1718744785450,2.89137,3458.6,3457.6,2.89215]
[1718744785649,2.89137,3458.6,3457.4,7.05877]
[1718744785650,2.89167,3458.3,3457.4,4.1665]
[1718744785849,2.89176,3458.1,3457.4,4.1665]
[1718744786058,2.89205,3457.8,3457.4,4.1665]
[1718744786559,2.89176,3458.1,3457.4,4.1665]
[1718744786990,2.89177,3458.1,3457.5,2.89224]
[1718744787211,2.89128,3458.7,3457.7,2.89208]
[1718744787393,3.0,3458.9,3458.0,2.89179]
[1718744787564,2.89136,3458.6,3458.2,4.6769]
[1718744787957,2.89149,3458.5,3457.7,7.56891]
[1718744788196,2.89149,3458.5,3457.7,4.6769]
[1718744788382,2.89152,3458.4,3457.7,7.56898]
[1718744788569,2.89152,3458.4,3457.7,4.6769]
[1718744788770,0.589085,3459.1,3457.7,4.6769]
[1718744788771,2.89118,3458.8,3458.3,2.89159]
[1718744789093,3.480075,3459.1,3458.3,2.89159]
[1718744789094,2.8911,3458.9,3458.3,2.89159]
[1718744789297,2.89119,3458.8,3458.2,2.8916]
[1718744790003,2.89132,3458.7,3458.1,2.89175]
[1718744790295,2.89132,3458.7,3457.7,7.56898]
[1718744790296,2.89127,3458.7,3457.7,7.56898]
[1718744790484,2.89152,3458.4,3457.8,3.648888]
[1718744790690,2.89144,3458.5,3457.9,2.89192]
[1718744791013,2.89168,3458.2,3457.7,4.6769]
[1718744791619,2.89169,3458.2,3457.7,4.6769]
[1718744791781,2.89176,3458.1,3457.7,4.6769]
[1718744791982,2.89176,3458.1,3457.4,2.89232]
[1718744791983,2.89176,3458.1,3457.1,2.89252]
[1718744792187,1.1914,3458.3,3456.9,2.89275]
[1718744792188,2.89226,3457.5,3456.9,2.89275]
[1718744792422,2.89219,3457.6,3457.0,2.89268]
[1718744792624,2.89211,3457.7,3456.9,2.89276]
[1718744792802,2.89201,3457.8,3457.0,2.89267]
[1718744793128,2.89201,3457.8,3456.8,2.89283]
[1718744793129,2.89194,3457.9,3457.1,2.89258]
[1718744793421,6.600239,3458.0,3457.2,2.89251]
[1718744793422,5.89203,3457.8,3457.2,2.89251]
[1718744793594,2.89203,3457.8,3457.2,2.89251]
[1718744793798,3.19126,3458.7,3456.8,2.89283]
[1718744793799,0.2892,3458.6,3456.8,2.89283]
[1718744794126,0.2892,3458.6,3456.7,0.745673]
[1718744794127,3.2892,3458.6,3457.3,2.89239]
[1718744794290,3.348046,3458.6,3457.8,4.5975]
[1718744794489,2.89144,3458.5,3457.8,4.5975]
[1718744794804,2.89153,3458.4,3457.8,7.48949]
[1718744795004,3.239386,3458.6,3458.0,2.89179]
[1718744795211,2.89123,3458.8,3458.1,2.89174]
[1718744795212,2.89124,3458.8,3458.1,2.89174]
[1718744795426,2.89117,3458.8,3458.1,2.89174]
[1718744795631,2.89128,3458.7,3458.1,2.89174]
[1718744795929,2.89137,3458.6,3457.9,2.89184]
[1718744796136,2.89143,3458.5,3458.0,2.89184]
[1718744796497,2.89143,3458.5,3457.8,4.5975]
[1718744796686,2.89159,3458.3,3457.8,4.5975]
[1718744797126,2.89179,3458.1,3457.1,4.5975]
[1718744797424,2.89178,3458.1,3457.5,2.89223]
[1718744797639,3.5279552,3458.1,3457.5,2.89223]
[1718744798189,2.89199,3457.9,3457.3,2.89242]
[1718744798497,2.89199,3457.9,3457.2,0.55]
[1718744798498,2.89193,3457.9,3457.2,2.89251]
[1718744798703,2.89193,3457.9,3457.1,7.49009]
[1718744798942,2.8921,3457.7,3457.1,7.49009]
[1718744799290,2.89219,3457.6,3457.1,4.5975]
[1718744799639,2.89228,3457.5,3457.0,2.89267]
[1718744800434,2.89228,3457.5,3456.9,2.89276]
[1718744800614,2.89219,3457.6,3457.0,2.89266]
[1718744800787,2.89228,3457.5,3456.9,2.89275]
[1718744801319,2.89235,3457.4,3456.9,2.89275]
[1718744801522,2.89235,3457.4,3456.8,2.89283]
[1718744801826,2.89235,3457.4,3456.8,5.78566]
[1718744802118,0.50066241,3458.3,3457.4,2.89233]
[1718744802119,2.89186,3458.0,3457.4,2.89233]
[1718744802297,0.50066241,3458.4,3457.5,2.89218]
[1718744802502,2.89167,3458.2,3457.5,2.89218]
[1718744802824,1.445276,3458.4,3457.5,4.5772]
[1718744803119,0.2892,3458.9,3457.8,2.89193]
[1718744803525,2.89112,3458.9,3458.2,2.89162]
[1718744804023,2.89109,3459.0,3458.2,2.89162]
[1718744804194,2.89094,3459.1,3458.4,2.89144]
[1718744804521,3.498138,3459.0,3458.4,7.56494]
[1718744804724,0.607098,3459.0,3458.5,2.89141]
[1718744805211,0.607098,3459.0,3458.6,2.89133]
[1718744805805,3.498108,3459.0,3458.4,4.6735]
[1718744806014,0.2892,3459.3,3458.4,4.6735]
[1718744806219,2.89085,3459.2,3458.6,2.89133]
[1718744806414,2.89076,3459.3,3458.6,2.39127]
[1718744806653,3.0,3459.2,3458.7,2.89124]
[1718744806841,5.89085,3459.2,3458.7,2.89124]
[1718744807353,5.89085,3459.2,3458.6,2.89132]
[1718744807548,3.0,3459.2,3458.7,2.89125]
[1718744808148,3.0,3459.2,3458.8,2.89116]
[1718744808309,3.60705,3459.3,3458.8,2.89116]
[1718744808508,6.4978,3459.3,3458.7,2.89125]
[1718744808924,2.89042,3459.7,3459.0,2.89099]
[1718744809123,2.89045,3459.7,3458.8,3.44111]
[1718744809422,2.89045,3459.7,3458.9,1.00575131]
[1718744809628,5.89026,3459.9,3459.1,2.89091]
[1718744810216,10.25976,3460.5,3459.3,4.7002]
[1718744810445,5.83867064,3460.4,3459.4,4.48625495]
[1718744810750,5.83867064,3460.4,3459.7,2.89034]
[1718744810751,2.88992,3460.3,3459.7,2.89034]
[1718744811051,0.951668,3460.2,3459.7,5.78068]
[1718744811348,2.88967,3460.6,3459.9,2.89022]
[1718744811559,2.10133777,3460.5,3460.0,2.89014]
[1718744811854,4.99116777,3460.5,3459.8,2.89033]
[1718744812153,2.88942155,3460.4,3459.8,2.89033]
[1718744812345,3.0,3460.3,3459.8,2.89033]
[1718744812654,3.0,3460.5,3459.8,2.89033]
[1718744812863,2.88984,3460.4,3459.8,2.89033]
[1718744813028,3.877951,3460.3,3459.8,2.89033]
[1718744813228,6.767891,3460.3,3459.6,2.8905]
[1718744813629,6.767891,3460.3,3459.7,2.89041]
[1718744814440,3.877951,3460.3,3459.8,2.89032]
[1718744815066,0.877951,3460.3,3459.8,2.89032]
[1718744815361,2.88957,3460.8,3459.9,2.89025]
[1718744815528,2.88962,3460.7,3460.1,2.89007]
[1718744815952,2.88967,3460.6,3460.1,2.89007]
[1718744816162,0.877924,3460.5,3460.1,2.89007]
[1718744816352,0.877924,3460.5,3460.0,2.89016]
[1718744816683,2.88942,3460.9,3459.9,2.89025]
[1718744816862,2.88942,3460.9,3460.2,2.39]
[1718744817176,2.88934,3461.0,3460.4,2.88982]
[1718744817352,2.88944,3460.9,3460.4,2.88982]
[1718744817540,2.88944,3460.9,3460.3,2.88992]
[1718744818464,2.88926,3461.1,3460.5,2.88974]
[1718744818774,0.918641,3461.0,3460.6,2.88967]
[1718744818976,0.29549606,3462.1,3460.6,2.88959]
[1718744818977,2.88884,3461.6,3460.6,2.88959]
[1718744819199,2.88915,3461.3,3460.7,2.88957]
[1718744819348,3.466949,3461.3,3460.7,2.88957]
[1718744819670,3.466949,3461.3,3460.4,2.88982]
[1718744819671,2.8892,3461.2,3460.6,2.88962]
[1718744820045,0.577799,3461.3,3460.5,2.88973]
[1718744820253,2.88903,3461.4,3460.8,2.88942]
[1718744820846,1.4409,3461.8,3460.8,2.8895]
[1718744821066,2.8889,3461.6,3460.9,2.88934]
[1718744821391,2.88868,3461.8,3461.2,2.88917]
[1718744822496,5.88835,3462.2,3461.5,2.88884]
[1718744822787,2.88833,3462.3,3461.5,2.88884]
[1718744823206,2.88842,3462.1,3461.5,2.88884]
[1718744823356,0.577675,3462.0,3461.5,2.88884]
[1718744825101,0.577675,3462.0,3461.0,7.60086]
[1718744825102,2.88885,3461.6,3461.0,7.60086]
[1718744825398,2.88842,3462.1,3460.8,2.88944]
[1718744825596,2.88899,3461.5,3460.8,2.88944]
[1718744825769,0.288899,3461.4,3460.8,2.88944]
[1718744825960,3.177919,3461.4,3460.8,2.88944]
[1718744826274,0.288899,3461.4,3460.7,2.88958]
[1718744826461,0.288899,3461.4,3460.8,2.8895]
[1718744826661,2.88892,3461.5,3460.9,2.88939]
[1718744826894,2.88874,3461.8,3460.9,2.88939]
[1718744827095,2.88874,3461.8,3461.2,2.8891]
[1718744827305,2.88877,3461.7,3461.2,2.8891]
[1718744827499,2.88908,3461.4,3460.8,2.88949]
[1718744827700,0.288908,3461.3,3460.9,0.55]